lending/lending_fUSD_20240604
["ID","MTS","AMOUNT","RATE_DAILY","PERIOD"]
[328540667,1717510244246,-4000.9008,0.00029998,2]
[328540669,1717510244255,-155.97259723,0.00029998,2]
[328540671,1717510244264,-261.19672657,0.00029998,2]
[328540672,1717510244274,-235.77130805,0.00029998,2]
[328540675,1717510244283,-220.54901293,0.00029998,2]
[328540676,1717510244293,-108402.55747086,0.00029998,2]
[328540678,1717510244302,-229.00475518,0.00029998,2]
[328540680,1717510244312,-1809.13911799,0.00029998,2]
[328540682,1717510244321,-180.43048221,0.00029998,2]
[328540684,1717510244330,-507.63751104,0.00029998,2]
[328540686,1717510244340,-18925.79908999,0.00029998,2]
[328540688,1717510244349,-276.70792554,0.00029998,2]
[328540690,1717510244359,-159.90269393,0.00029998,2]
[328540692,1717510244371,-2010.1,0.00029998,6]
[328540694,1717510244380,-957.32,0.00029998,6]
[328540696,1717510244389,-538.42,0.00029998,6]
[328540698,1717510244399,-671.99999999,0.00029998,2]
[328540700,1717510244413,-204.678269,0.00029998,7]
[328540702,1717510244421,-204.678269,0.00029998,7]
[328540704,1717510244431,-277.43106948,0.00029999,2]
[328540706,1717510244440,-654.73624,0.00029999,2]
[328540708,1717510244451,-2010.1,0.00029999,6]
[328540710,1717510244460,-2010.1,0.00029999,6]
[328540712,1717510244470,-2010.1,0.00029999,6]
[328540714,1717510244478,-2010.1,0.00029999,6]
[328540716,1717510244488,-2010.1,0.00029999,6]
[328540718,1717510244496,-2010.1,0.00029999,6]
[328540720,1717510244506,-2010.1,0.00029999,6]
[328540722,1717510244516,-2010.1,0.00029999,6]
[328540724,1717510244525,-2010.1,0.00029999,6]
[328540726,1717510244534,-2010.1,0.00029999,6]
[328540728,1717510244543,-2010.1,0.00029999,6]
[328540730,1717510244553,-2010.1,0.00029999,6]
[328540732,1717510244564,-2010.1,0.00029999,6]
[328540733,1717510244573,-2010.13543251,0.00029999,6]
[328540734,1717510244584,-957.32,0.00029999,6]
[328540735,1717510244593,-957.32,0.00029999,6]
[328540736,1717510244602,-957.32,0.00029999,6]
[328540737,1717510244612,-957.32,0.00029999,6]
[328540738,1717510244621,-957.32,0.00029999,6]
[328540739,1717510244630,-957.32,0.00029999,6]
[328540740,1717510244639,-957.32,0.00029999,6]
[328540741,1717510244647,-957.32,0.00029999,6]
[328540742,1717510244657,-957.32,0.00029999,6]
[328540743,1717510244666,-957.32,0.00029999,6]
[328540744,1717510244675,-957.32,0.00029999,6]
[328540745,1717510244684,-957.32,0.00029999,6]
[328540747,1717510244693,-957.32,0.00029999,6]
[328540748,1717510244702,-957.44703815,0.00029999,6]
[328540750,1717510244711,-640.64,0.00029999,6]
[328540753,1717510244721,-640.64,0.00029999,6]
[328540754,1717510244730,-640.64,0.00029999,6]
[328540756,1717510244739,-640.64,0.00029999,6]
[328540758,1717510244748,-640.64,0.00029999,6]
[328540761,1717510244759,-640.64,0.00029999,6]
[328540762,1717510244768,-640.64,0.00029999,6]
[328540764,1717510244778,-640.64,0.00029999,6]
[328540767,1717510244787,-640.64,0.00029999,6]
[328540768,1717510244796,-538.42,0.00029999,6]
[328540770,1717510244805,-640.64,0.00029999,6]
[328540773,1717510244814,-538.42,0.00029999,6]
[328540774,1717510244824,-640.64,0.00029999,6]
[328540776,1717510244833,-538.42,0.00029999,6]
[328540778,1717510244842,-640.64,0.00029999,6]
[328540780,1717510244851,-538.42,0.00029999,6]
[328540782,1717510244860,-538.42,0.00029999,6]
[328540784,1717510244870,-640.64,0.00029999,6]
[328540786,1717510244879,-538.42,0.00029999,6]
[328540788,1717510244888,-640.64,0.00029999,6]
[328540790,1717510244897,-538.42,0.00029999,6]
[328540792,1717510244906,-640.76,0.00029999,6]
[328540794,1717510244915,-538.42,0.00029999,6]
[328540796,1717510244924,-538.42,0.00029999,6]
[328540798,1717510244933,-538.42,0.00029999,6]
[328540800,1717510244943,-538.42,0.00029999,6]
[328540803,1717510244952,-538.42,0.00029999,6]
[328540805,1717510244961,-538.42,0.00029999,6]
[328540807,1717510244971,-538.54,0.00029999,6]
[328540809,1717510244980,-150.0,0.00029999,2]
[328540810,1717510244989,-299.58469868,0.0003,5]
[328540812,1717510244998,-1376834.99853201,0.0003,2]
[328540814,1717510245011,-25431.01909372,0.0003,2]
[328540817,1717510245022,-1243.9391314,0.0003,2]
[328540819,1717510245036,-2786272.04821387,0.0003,2]
[328540821,1717510245046,-9563.42588814,0.0003,2]
[328540823,1717510245057,-14600.57948781,0.0003,2]
[328540826,1717510245069,-1133.17798617,0.0003,2]
[328540828,1717510245080,-403413.25397779,0.0003,2]
[328540830,1717510245095,-653.97457036,0.0003,2]
[328540832,1717510245106,-1176.64081656,0.0003,2]
[328540835,1717510245119,-621.92876496,0.0003,2]
[328540837,1717510245130,-453.8567141,0.0003,2]
[328540839,1717510245140,-765.12000001,0.0003,2]
[328540841,1717510245152,-1229.69159329,0.0003,2]
[328540843,1717510245162,-1134.31999994,0.0003,2]
[328540846,1717510245173,-912.45,0.0003,2]
[328540848,1717510245185,-5893.04789687,0.0003,2]
[328540850,1717510245196,-5981.86214313,0.0003,2]
[328540852,1717510245207,-5514.84124466,0.0003,2]
[328540854,1717510245217,-6996.64389408,0.0003,2]
[328540856,1717510245228,-1738.49366838,0.0003,2]
[328540859,1717510245240,-469.67010088,0.0003,2]
[328540861,1717510245252,-3262.72601962,0.0003,2]
[328540863,1717510245263,-11459.61740757,0.0003,2]
[328540865,1717510245275,-2192.94884986,0.0003,2]
[328540867,1717510245286,-10993.9145068,0.0003,2]
[328540868,1717510245296,-106561.06218505,0.0003,2]
[328540875,1717510245883,-7818.63174524,0.0003,2]
[328540876,1717510245895,-7906.46273097,0.0003,2]
[328540877,1717510245906,-378098.50274612,0.0003,2]
[328540878,1717510245916,-1047519.71975488,0.0003,2]
[328540879,1717510245927,-75554.00000029,0.0003,2]
[328540880,1717510245938,-378.0759961,0.0003,2]
[328540881,1717510245949,-471.06123135,0.0003,2]
[328540882,1717510245962,-500.0,0.0003,2]
[328540883,1717510246015,-1396.76750727,0.0003,2]
[328540884,1717510246028,-462.1772013,0.0003,2]
[328540885,1717510246042,-96226.45235564,0.0003,2]
[328540886,1717510246160,-933.43525499,0.0003,2]
[328540887,1717510246174,-1263.0,0.0003,2]
[328540888,1717510246188,-404.48230813,0.0003,2]
[328540889,1717510246202,-628.22006183,0.0003,2]
[328540890,1717510246215,-534.16021158,0.0003,2]
[328540891,1717510246227,-1603.20601043,0.0003,2]
[328540892,1717510246239,-1441.51361001,0.0003,2]
[328540893,1717510246252,-818.90005,0.0003,2]
[328540894,1717510246266,-723.53997494,0.0003,2]
[328540895,1717510246297,-698.905,0.0003,2]
[328540896,1717510246310,-862.40382275,0.0003,2]
[328540899,1717510533498,-340.9365,0.00016837,2]
[328540900,1717510547150,1041.80097141,0.00016837,2]
[328540901,1717510547180,362.72006922,0.00016837,2]
[328540902,1717510549204,19763.89772466,0.00016837,2]
[328540903,1717510552345,8490.64473471,0.00016837,2]
[328540904,1717510575350,-29068.72002137,0.00016837,2]
[328540905,1717510575372,-931.27997863,0.00016837,2]
[328540906,1717510610772,-431.33063369,0.00016837,2]
[328540907,1717510610793,-1046.18219115,0.00016837,2]
[328540908,1717510610814,-410.55868637,0.00016837,2]
[328540909,1717510610836,-18111.92848879,0.00016837,2]
[328540913,1717510869714,-160.31,0.00029808,30]
[328540995,1717511432100,-3384.04340712,0.00016718,2]
[328540996,1717511432110,-1979.48660224,0.00016719,2]
[328540997,1717511432119,-370.80060729,0.00016736,2]
[328540999,1717511432129,-919.95672198,0.00016827,2]
[328541003,1717511432138,-797.19561269,0.00016837,2]
[328541006,1717511432148,-1046.18219115,0.00016837,2]
[328541008,1717511432157,-164.47,0.00017037,2]
[328541012,1717511432166,-150.99,0.00019452,2]
[328541015,1717511432185,-170.69,0.00021296,2]
[328541016,1717511432197,-1667.13,0.00021296,2]
[328541017,1717511432207,-1920.56,0.00021296,2]
[328541018,1717511432217,-1077.52,0.00021296,2]
[328541019,1717511432227,-250.0,0.00021296,2]
[328541020,1717511432237,-167.42,0.00021456,2]
[328541021,1717511432246,-167.42,0.00022574,2]
[328541022,1717511432482,-304.66,0.00023178,2]
[328541023,1717511432492,-3517.0,0.000232,2]
[328541024,1717511432502,-1077.52,0.00024036,2]
[328541025,1717511432512,-1000.0,0.0002475,2]
[328541026,1717511432522,-195.04546039,0.00024789,2]
[328541027,1717511432532,-848.23,0.00025085,2]
[328541028,1717511432541,-163.98,0.00025139,2]
[328541029,1717511432551,-304.66,0.00025442,2]
[328541030,1717511432560,-12421.03939714,0.00025657,2]
[328541031,1717511434439,-3850.31055054,0.00025657,2]
[328541032,1717511434453,-2359.23882333,0.00025657,2]
[328541033,1717511434466,-2790.34058908,0.00025657,2]
[328541034,1717511434479,-2479.07063991,0.00025657,2]
[328541035,1717511434489,-250.0,0.00025761,2]
[328541036,1717511434499,-1077.52,0.00026776,2]
[328541037,1717511434510,-304.66,0.00027706,2]
[328541038,1717511434519,-1000.0,0.00027844,2]
[328541039,1717511434529,-3209.127,0.00028576,2]
[328541040,1717511434539,-150.0,0.00028576,2]
[328541041,1717511434553,-170.15696502,0.000289,2]
[328541042,1717511434563,-161.26360729,0.000289,2]
[328541043,1717511434572,-1000.0,0.000289,2]
[328541044,1717511434583,-800.0,0.000289,10]
[328541045,1717511434593,-318.46133256,0.000289,2]
[328541046,1717511434604,-259.61790878,0.000289,2]
[328541047,1717511434613,-318.46133254,0.00028971,2]
[328541048,1717511434624,-259.61790875,0.00028988,2]
[328541049,1717511434634,-185.81,0.0002899,10]
[328541050,1717511434643,-337.08,0.0002899,10]
[328541051,1717511434654,-280.9,0.0002899,10]
[328541052,1717511434663,-4292.48230043,0.00029,5]
[328541061,1717511434811,-136405.99999988,0.00029,5]
[328541064,1717511434824,-1024.53356218,0.00029,5]
[328541065,1717511434837,-4273.82634133,0.00029,5]
[328541066,1717511434848,-254.68592052,0.00029,5]
[328541067,1717511434873,-757.07841049,0.00029,5]
[328541068,1717511434885,-48391.29588213,0.00029,5]
[328541069,1717511434897,-380.04295626,0.00029,5]
[328541083,1717511440235,-206.05,0.0002899,3]
[328541084,1717511440245,-234.09,0.0002899,10]
[328541085,1717511440255,-3356.36768788,0.00029,5]
[328541086,1717511440268,-4191.34,0.00029,5]
[328541087,1717511440281,-342.25,0.00029,5]
[328541088,1717511440294,-51263.54018321,0.00029,5]
[328541089,1717511440306,-324.32665839,0.00029,5]
[328541090,1717511440318,-2202.83073604,0.00029,5]
[328541091,1717511440331,-5360.37217192,0.00029,5]
[328541092,1717511440345,-3411.88396178,0.00029,5]
[328541093,1717511440356,-1701.42867512,0.00029,5]
[328541095,1717511440458,-11591.42915868,0.00029,5]
[328541097,1717511440470,-5213.2416444,0.00029,5]
[328541099,1717511440482,-7500.45083114,0.00029,5]
[328541101,1717511440494,-1499.999998,0.00029,5]
[328541103,1717511440506,-1158.01182565,0.00029,5]
[328541105,1717511440518,-1006.68750238,0.00029,5]
[328541108,1717511440530,-1000.4913142,0.00029,5]
[328541110,1717511440542,-4811.15917515,0.00029,5]
[328541112,1717511440555,-145103.55455171,0.00029,5]
[328541121,1717511441134,-3266.48382435,0.00029,5]
[328541122,1717511441146,-401.91663883,0.00029,5]
[328541125,1717511442084,-90217.33614439,0.00029,5]
[328541126,1717511442097,-3935.21194356,0.00029,5]
[328541127,1717511442107,-300.0,0.00029,2]
[328541128,1717511442117,-1600.0,0.00029,10]
[328541129,1717511442126,-1526.118707,0.00029,2]
[328541130,1717511442136,-318.46133254,0.00029042,15]
[328541131,1717511442145,-259.61790875,0.00029077,2]
[328541132,1717511442155,-2400.0,0.000291,10]
[328541133,1717511442165,-151.0,0.00029103,7]
[328541134,1717511442174,-158.04623587,0.00029113,15]
[328541135,1717511442186,-160.41509667,0.00029113,15]
[328541136,1717511442195,-259.61790875,0.00029165,2]
[328541137,1717511442205,-150.0,0.00029171,2]
[328541138,1717511442215,-352.96,0.00029178,2]
[328541139,1717511442225,-352.96,0.00029178,2]
[328541140,1717511442235,-89.22198255,0.00029178,2]
[328541141,1717511442247,-263.25801745,0.00029178,2]
[328541142,1717511442257,-318.46133254,0.00029184,15]
[328541143,1717511442266,-168.08564923,0.000292,10]
[328541144,1717511442278,-3031.91435077,0.000292,10]
[328541145,1717511442288,-259.61790875,0.00029254,2]
[328541146,1717511442297,-318.46133254,0.00029254,15]
[328541147,1717511442306,-4000.0,0.000293,10]
[328541148,1717511442316,-318.46133254,0.00029325,15]
[328541149,1717511442325,-150.25725916,0.00029337,2]
[328541150,1717511442335,-259.61790875,0.00029342,2]
[328541151,1717511442345,-151.37674831,0.00029356,2]
[328541152,1717511442354,-150.25725916,0.0002939,2]
[328541153,1717511442363,-318.46133254,0.00029396,15]
[328541154,1717511442373,-800.0,0.000294,10]
[328541155,1717511442383,-259.61790875,0.00029431,2]
[328541156,1717511442393,-150.24437526,0.00029446,2]
[328541157,1717511442402,-150.24437526,0.00029465,2]
[328541158,1717511442412,-277.76277107,0.00029467,15]
[328541159,1717511442421,-318.46133254,0.00029467,15]
[328541160,1717511442430,-800.0,0.000295,10]
[328541161,1717511442440,-1500.0,0.000295,2]
[328541162,1717511442449,-275.98048434,0.000295,2]
[328541163,1717511442459,-412.80413138,0.00029509,2]
[328541164,1717511442468,-151.37674831,0.0002951,2]
[328541165,1717511442478,-161.97108922,0.00029514,2]
[328541166,1717511442488,-175.96130782,0.00029519,2]
[328541167,1717511442498,-259.61790875,0.00029519,2]
[328541168,1717511442508,-1120.28669671,0.00029519,2]
[328541169,1717511442518,-161.97108922,0.00029527,2]
[328541170,1717511442528,-150.25725916,0.00029531,2]
[328541171,1717511442539,-277.76277107,0.00029538,15]
[328541172,1717511442549,-318.46133254,0.00029538,15]
[328541173,1717511442559,-1120.28669662,0.00029548,2]
[328541174,1717511442570,-151.37674831,0.00029555,2]
[328541175,1717511442580,-412.80413138,0.00029559,2]
[328541176,1717511442591,-153.05703102,0.00029569,2]
[328541177,1717511442601,-1120.28669662,0.00029576,2]
[328541178,1717511442611,-151.37674831,0.00029581,2]
[328541179,1717511442621,-155.65870467,0.00029589,6]
[328541180,1717511442630,-527.55236333,0.00029589,6]
[328541181,1717511442640,-422.25435895,0.00029589,6]
[328541182,1717511442650,-500.0,0.00029589,6]
[328541183,1717511442659,-500.0,0.00029589,6]
[328541184,1717511442669,-431.30255657,0.00029589,6]
[328541185,1717511442680,-604.42,0.00029589,6]
[328541186,1717511442690,-513.85043149,0.00029589,6]
[328541187,1717511442700,-500.0,0.00029589,6]
[328541188,1717511442710,-500.0,0.00029589,6]
[328541189,1717511442719,-500.0,0.00029589,6]
[328541190,1717511442728,-500.0,0.00029589,6]
[328541191,1717511442738,-500.0,0.00029589,6]
[328541192,1717511442748,-432.5596,0.00029589,6]
[328541193,1717511442757,-500.0,0.00029589,6]
[328541194,1717511442766,-500.0,0.00029589,6]
[328541195,1717511442776,-500.0,0.00029589,6]
[328541196,1717511442786,-500.0,0.00029589,6]
[328541197,1717511442798,-500.0,0.00029589,6]
[328541198,1717511442808,-500.0,0.00029589,6]
[328541199,1717511442817,-500.0,0.00029589,6]
[328541200,1717511442826,-151.17,0.0002959,2]
[328541201,1717511442839,-151.17,0.0002959,2]
[328541202,1717511442848,-161.97108922,0.00029596,2]
[328541203,1717511442858,-280.92840298,0.00029598,2]
[328541204,1717511442868,-286.09731809,0.00029599,2]
[328541205,1717511442879,-500.0,0.00029599,6]
[328541206,1717511442889,-500.0,0.00029599,6]
[328541207,1717511442898,-500.0,0.00029599,6]
[328541208,1717511442908,-500.0,0.00029599,6]
[328541209,1717511442917,-500.0,0.00029599,6]
[328541210,1717511442927,-500.0,0.00029599,6]
[328541211,1717511442936,-500.0,0.00029599,6]
[328541212,1717511442946,-350.58555359,0.00029599,6]
[328541213,1717511442955,-500.0,0.00029599,6]
[328541214,1717511442964,-500.0,0.00029599,6]
[328541216,1717511442973,-500.0,0.00029599,6]
[328541217,1717511442982,-500.0,0.00029599,6]
[328541218,1717511442992,-500.0,0.00029599,6]
[328541219,1717511443002,-500.0,0.00029599,6]
[328541220,1717511443011,-500.0,0.00029599,6]
[328541221,1717511443020,-331.25622817,0.00029599,6]
[328541222,1717511443030,-500.0,0.00029599,2]
[328541223,1717511443038,-510.10971133,0.00029599,2]
[328541224,1717511443048,-26306.48407387,0.000296,13]
[328541225,1717511443061,-1532.97436878,0.000296,13]
[328541226,1717511443072,-7988.8,0.000296,13]
[328541227,1717511443083,-12151.51106706,0.000296,13]
[328541228,1717511443094,-800.0,0.000296,10]
[328541229,1717511443103,-1511.83959403,0.000296,2]
[328541230,1717511443112,-2815.95502897,0.000296,2]
[328541231,1717511443123,-48230.22803712,0.000296,2]
[328541233,1717511443132,-21857.18849066,0.000296,5]
[328541235,1717511443143,-355.29575609,0.000296,5]
[328541239,1717511443327,-1979.48660224,0.00029598,2]
[328541240,1717511443337,-2490.19330324,0.000296,5]
[328541241,1717511443349,-279648.00000002,0.000296,5]
[328541242,1717511443360,-2189917.02768955,0.000296,5]
[328541243,1717511443537,-18283.51431937,0.000296,5]
[328541244,1717511443549,-16718.0,0.000296,5]
[328541245,1717511443851,-278.49198902,0.000296,5]
[328541246,1717511443863,-346.56177952,0.000296,5]
[328541247,1717511443876,-7324.29152399,0.000296,5]
[328541248,1717511443888,-925.21084893,0.000296,5]
[328541254,1717511446254,-266.5592988,0.00029598,2]
[328541255,1717511446459,-536.55100737,0.00029598,2]
[328541271,1717511447166,-2580.93310095,0.00029598,2]
[328541272,1717511447176,-352.57848536,0.000296,5]
[328541273,1717511447188,-699.27,0.000296,5]
[328541274,1717511447199,-1776.3344768,0.000296,5]
[328541275,1717511447210,-349.34596294,0.000296,5]
[328541276,1717511447222,-382.84633833,0.000296,5]
[328541277,1717511447233,-896.01,0.000296,5]
[328541278,1717511447244,-1552.33040497,0.000296,5]
[328541279,1717511464770,-160.31,0.00029808,30]
[328541280,1717511464822,-202.06116197,0.0003,30]
[328541318,1717512038653,-3330.163063,0.00013417,2]
[328541319,1717512038675,-1447.29190115,0.00013623,2]
[328541320,1717512038697,-1222.54503585,0.00013723,2]
[328541324,1717512329202,-452.96950587,0.00012597,2]
[328541325,1717512329228,-155.75188493,0.00012598,2]
[328541326,1717512345311,174.0619396,0.00012458,2]
[328541327,1717512369666,410.55868637,0.00012458,2]
[328541328,1717512375965,43806.65798323,0.00012458,2]
[328541329,1717512400010,-75000.0,0.00012458,2]
[328541331,1717512423888,-171.71,0.00010959,2]
[328541332,1717512423913,-4610.3336856,0.00012456,2]
[328541333,1717512423938,-856.97889331,0.00012457,2]
[328541334,1717512423962,-360.97742109,0.00012458,2]
[328541340,1717512446698,-858.58,0.00010959,2]
[328541341,1717512446723,-162.99818709,0.00012358,2]
[328541342,1717512446748,-28578.42181291,0.00012458,2]
[328541411,1717512604405,-1348.491713,0.00012394,2]
[328541412,1717512604426,-651.0,0.00012457,2]
[328541413,1717512604447,-0.508287,0.00012457,2]
[328541414,1717512606014,-149.491713,0.00012457,2]
[328541415,1717512606034,-150.0,0.00012457,2]
[328541416,1717512606055,-1700.508287,0.00012458,2]
[328541417,1717512606932,-2000.0,0.00012458,2]
[328541419,1717512632488,-472.04,0.00012458,2]
[328541420,1717512632499,-698.35766,0.00012458,2]
[328541421,1717512632510,-6956.2848,0.00012458,2]
[328541422,1717512632526,-34750.0,0.00012458,2]
[328541423,1717512632538,-250.48725582,0.00012458,2]
[328541424,1717512632549,-418.54007673,0.00012458,2]
[328541425,1717512632560,-553.94826407,0.00012458,2]
[328541426,1717512632698,-3602.44257493,0.00012458,2]
[328541427,1717512632709,-15259.76748364,0.00012458,2]
[328541428,1717512632721,-87353.32486003,0.00012458,2]
[328541429,1717512632732,-6767.07114583,0.00012458,2]
[328541430,1717512632744,-641.37290133,0.00012458,2]
[328541431,1717512632755,-8421.46922863,0.00012458,2]
[328541432,1717512632767,-969.45652537,0.00012458,2]
[328541433,1717512632782,-3367.93087916,0.00012458,2]
[328541434,1717512632793,-1565.31339387,0.00012458,2]
[328541435,1717512632897,-811.05669613,0.00012458,2]
[328541438,1717512632910,-700.0,0.00012458,2]
[328541485,1717512638399,-145618.99339021,0.00012458,2]
[328541492,1717512638616,-3519.55,0.00012458,2]
[328541493,1717512638629,-774.1894937,0.00012458,2]
[328541494,1717512638641,-2000.0,0.00012458,2]
[328541495,1717512638652,-355.83525366,0.00012458,2]
[328541496,1717512638856,-264.135,0.00012458,2]
[328541497,1717512638869,-71000.72347542,0.00012458,2]
[328541498,1717512638879,-362.72006922,0.00012458,2]
[328541499,1717512638888,-19763.89772466,0.00012458,2]
[328541500,1717512638897,-410.55868637,0.00012458,2]
[328541501,1717512638906,-156.04,0.00012603,2]
[328541502,1717512638915,-241.28467853,0.000129,2]
[328541503,1717512638925,-1362.61061232,0.00013723,2]
[328541504,1717512638934,-785.60612451,0.00013724,2]
[328541505,1717512638943,-382.49,0.00013786,2]
[328541506,1717512638952,-235.91541217,0.00013858,2]
[328541507,1717512638961,-155.0,0.00013896,2]
[328541508,1717512638970,-224.99,0.00013896,2]
[328541509,1717512638979,-5196.67,0.00013896,2]
[328541510,1717512638988,-2189.15550805,0.00013985,2]
[328541511,1717512639004,-969.60211798,0.0001399,2]
[328541512,1717512639018,-151.16,0.0001399,2]
[328541513,1717512639029,-17680.16878503,0.00013998,2]
[328541514,1717512639039,-280.92840298,0.00013998,2]
[328541515,1717512639050,-481.53748878,0.00013998,2]
[328541516,1717512639059,-326.82850745,0.00013998,2]
[328541517,1717512639070,-2334.08269721,0.00013998,2]
[328541518,1717512639079,-150.99,0.00013998,2]
[328541519,1717512639089,-1390.06769732,0.00013998,2]
[328541520,1717512639099,-706.46620802,0.00013998,2]
[328541521,1717512639109,-718.42864834,0.00013998,2]
[328541522,1717512639120,-7960.19874885,0.00013999,2]
[328541523,1717512639130,-253040.87916284,0.00014,2]
[328541524,1717512640430,-5312.39710159,0.00014,2]
[328541525,1717512640443,-258075.95842,0.00014,2]
[328541526,1717512640455,-10087.8837495,0.00014,2]
[328541624,1717512641669,-3262.32827987,0.00014,2]
[328541625,1717512641894,-8364.4955025,0.00014,2]
[328541651,1717512643533,-184513.09174291,0.00014,2]
[328541652,1717512643546,-1470.14303419,0.00014,2]
[328541653,1717512643739,-2063.4,0.00014,2]
[328541654,1717512643751,-931.13278959,0.00014,2]
[328541655,1717512643763,-670.78971351,0.00014,2]
[328541656,1717512643776,-17193.66650535,0.00014,2]
[328541657,1717512643789,-4811.71130156,0.00014,2]
[328541658,1717512643800,-7292.85290267,0.00014,2]
[328541659,1717512643812,-3782.8,0.00014,2]
[328541660,1717512643823,-2997.28124043,0.00014,2]
[328541661,1717512643835,-5209.75247569,0.00014,2]
[328541662,1717512643846,-1000499.99367906,0.00014,2]
[328541663,1717512643858,-3480.901475,0.00014,2]
[328541664,1717512643987,-6961.03432312,0.00014,2]
[328541768,1717512648199,-878782.62721772,0.00014,2]
[328541770,1717512648209,-299.99,0.00014,2]
[328541772,1717512648218,-1086.22,0.00014,2]
[328541774,1717512648227,-1046.18219115,0.00015,2]
[328541776,1717512648238,-185.93691833,0.0001506,2]
[328541778,1717512648248,-173.46,0.00015128,2]
[328541780,1717512648257,-250.0,0.00015355,2]
[328541782,1717512648267,-500.0,0.00015704,2]
[328541784,1717512648276,-153.85,0.00016025,2]
[328541786,1717512648286,-382.49,0.0001605,2]
[328541788,1717512648295,-499.99,0.00016618,2]
[328541790,1717512648305,-157.87,0.00016903,2]
[328541791,1717512648314,-157.87,0.00016945,2]
[328541792,1717512648324,-157.87,0.00016987,2]
[328541793,1717512648333,-177.9,0.00017192,2]
[328541794,1717512648342,-1000.0,0.00017192,2]
[328541795,1717512648351,-591920.44161435,0.00018,2]
[328541796,1717512648360,-250.0,0.0001828,2]
[328541797,1717512648369,-382.49,0.00018314,2]
[328541798,1717512648379,-372.15,0.00019004,2]
[328541799,1717512648389,-218.61844771,0.00019178,2]
[328541800,1717512648398,-441.79647225,0.00019178,2]
[328541801,1717512648408,-1652.7,0.000192,2]
[328541802,1717512648417,-1399.2,0.000192,2]
[328541803,1717512648427,-903.17339402,0.000192,2]
[328541804,1717512648436,-1000.0,0.00019341,2]
[328541805,1717512648446,-1979.48660224,0.0002,2]
[328541806,1717512648455,-226.54621656,0.000201,2]
[328541807,1717512648464,-382.49,0.00020578,2]
[328541808,1717512648474,-429.29,0.00021296,2]
[328541809,1717512648484,-1895.56,0.00021296,3]
[328541810,1717512648493,-12769.38,0.00021296,2]
[328541811,1717512648502,-486.82,0.00021296,2]
[328541812,1717512648511,-429.29,0.00021302,2]
[328541813,1717512648522,-429.29,0.00021308,2]
[328541814,1717512648531,-429.29,0.00021313,2]
[328541815,1717512648543,-429.29,0.00021319,2]
[328541816,1717512648552,-429.29,0.00021324,2]
[328541817,1717512648561,-429.29,0.0002133,2]
[328541818,1717512648571,-429.29,0.00021336,2]
[328541819,1717512648580,-429.29,0.00021341,2]
[328541820,1717512648590,-429.29,0.00021347,2]
[328541821,1717512648599,-429.29,0.00021353,2]
[328541822,1717512648608,-429.29,0.00021358,2]
[328541823,1717512648618,-429.29,0.00021364,2]
[328541824,1717512648627,-429.29,0.00021369,2]
[328541825,1717512648636,-429.29,0.00021375,2]
[328541826,1717512648646,-429.29,0.00021381,2]
[328541827,1717512648656,-429.29,0.00021386,2]
[328541828,1717512648666,-429.29,0.00021392,2]
[328541829,1717512648675,-429.29,0.00021397,2]
[328541830,1717512648685,-429.29,0.00021403,2]
[328541831,1717512648694,-4499.68,0.00021467,2]
[328541832,1717512648703,-1000.0,0.0002149,2]
[328541833,1717512648713,-372.15,0.00021743,2]
[328541834,1717512648722,-163.98,0.00021918,2]
[328541835,1717512648732,-382.49,0.00022842,2]
[328541836,1717512648744,-3586.0,0.000236,3]
[328541837,1717512648753,-748.0,0.000236,3]
[328541838,1717512648762,-1000.0,0.00023639,2]
[328541839,1717512648772,-6216.28542143,0.00024,3]